bitfinex/quotes_BTCUSD_20250620
["timestamp","ask_amount","ask_price","bid_price","bid_amount"]
[1750459911068,0.34161403,103140.0,103130.0,0.4896405]
[1750459915609,0.34161403,103140.0,103130.0,0.5332405]
[1750459915610,0.001,103140.0,103130.0,0.5332405]
[1750459917950,0.001,103140.0,103130.0,0.5306805]
[1750459922339,0.001,103140.0,103130.0,0.88583538]
[1750459926381,0.001,103140.0,103130.0,0.54522135]
[1750459928535,0.001,103140.0,103130.0,0.88583538]
[1750459928999,0.001,103140.0,103130.0,0.91495238]
[1750459929446,0.001,103140.0,103130.0,0.91395238]
[1750459929850,9.714e-05,103150.0,103140.0,0.26599672]
[1750459930049,9.714e-05,103150.0,103140.0,0.36247565]
[1750459931097,9.714e-05,103150.0,103140.0,0.89259053]
[1750459931098,0.00109714,103150.0,103140.0,0.89259053]
[1750459931309,0.00109714,103150.0,103140.0,0.5810915]
[1750459932158,0.00509714,103150.0,103140.0,0.5820915]
[1750459935398,0.00509714,103150.0,103140.0,0.97410553]
[1750459938708,0.00509714,103150.0,103140.0,0.6334915]
[1750459938916,0.00509714,103150.0,103140.0,0.97410553]
[1750459940006,0.00509714,103150.0,103140.0,0.6334915]
[1750459940216,0.00509714,103150.0,103140.0,0.97410553]
[1750459941048,0.00509714,103150.0,103140.0,1.27270553]
[1750459944903,0.00509714,103150.0,103140.0,0.6831315]
[1750459945113,0.38935195,103150.0,103140.0,0.79231565]
[1750459945310,0.38935195,103150.0,103140.0,0.79227565]
[1750459945513,0.36745195,103150.0,103140.0,0.79227565]
[1750459945713,0.34645195,103150.0,103140.0,0.79347565]
[1750459946797,0.00509714,103150.0,103140.0,0.49487565]
[1750459947239,0.00509714,103150.0,103140.0,0.71925216]
[1750459947434,0.00509714,103150.0,103140.0,0.89361216]
[1750459947620,0.00509714,103150.0,103140.0,0.5521765]
[1750459948983,0.00509714,103150.0,103140.0,0.92272516]
[1750459950616,0.00509714,103150.0,103140.0,1.56276082]
[1750459950820,0.00509714,103150.0,103140.0,1.95276082]
[1750459952459,0.00509714,103150.0,103140.0,2.00276082]
[1750459955961,0.00509714,103150.0,103140.0,2.09947503]
[1750459956718,0.00409714,103150.0,103140.0,2.09947503]
[1750459957129,0.00509714,103150.0,103140.0,2.10247503]
[1750459957573,0.00409714,103150.0,103140.0,2.09947503]
[1750459958006,9.714e-05,103150.0,103140.0,2.09847503]
[1750459958213,0.00109714,103150.0,103140.0,2.10147503]
[1750459958626,0.00109714,103150.0,103140.0,2.09847503]
[1750459958838,0.00209714,103150.0,103140.0,2.10447503]
[1750459959460,0.00309714,103150.0,103140.0,2.10847503]
[1750459960763,0.00309714,103150.0,103140.0,1.93411503]
[1750459961094,0.00309714,103150.0,103140.0,2.10867503]
[1750459961642,0.00309714,103150.0,103140.0,2.15867503]
[1750459962059,0.00309714,103150.0,103140.0,2.10867503]
[1750459964730,0.00309714,103150.0,103140.0,0.85264371]
[1750459964956,0.00309714,103150.0,103140.0,1.53948082]
[1750459965309,0.00309714,103150.0,103140.0,1.01714431]
[1750459965537,0.00309714,103150.0,103140.0,1.42168516]
[1750459965764,0.00309714,103150.0,103140.0,1.37168516]
[1750459966954,0.00309714,103150.0,103140.0,1.37164516]
[1750459967114,0.00309714,103150.0,103140.0,1.42164516]
[1750459967348,0.00309714,103150.0,103140.0,1.32164516]
[1750459967561,0.00309714,103150.0,103140.0,1.30034516]
[1750459968672,9.714e-05,103150.0,103140.0,1.29034516]
[1750459968897,0.00109714,103150.0,103140.0,1.29334516]
[1750459969096,0.00109714,103150.0,103140.0,1.29734516]
[1750459969097,0.00209714,103150.0,103140.0,1.29734516]
[1750459969473,0.00209714,103150.0,103140.0,1.34734516]
[1750459969674,0.00209714,103150.0,103140.0,1.37004516]
[1750459971397,0.00209714,103150.0,103140.0,1.32004516]
[1750459976944,0.00209714,103150.0,103140.0,1.29614516]
[1750459977197,0.00209714,103150.0,103140.0,1.27582516]
[1750459978249,0.02419714,103150.0,103140.0,1.27360516]
[1750459978455,0.04639714,103150.0,103140.0,0.7589295]
[1750459978656,0.04639714,103150.0,103140.0,0.9321695]
[1750459979074,0.04639714,103150.0,103140.0,0.4189295]
[1750459979278,0.04539714,103150.0,103140.0,0.5891295]
[1750459979504,0.04439714,103150.0,103140.0,0.5851295]
[1750459979707,0.04539714,103150.0,103140.0,0.5871295]
[1750459980154,0.04539714,103150.0,103140.0,0.92856516]
[1750459980771,0.04539714,103150.0,103140.0,0.5871295]
[1750459981392,0.04639714,103150.0,103140.0,0.5891295]
[1750459982039,0.00209714,103150.0,103140.0,0.93056516]
[1750459982241,0.00209714,103150.0,103140.0,0.93170516]
[1750459982416,0.00209714,103150.0,103140.0,0.95440516]
[1750459983069,0.00209714,103150.0,103140.0,0.97700516]
[1750459985144,0.35112661,103180.0,103170.0,0.22293188]
[1750459985320,0.35121803,103180.0,103170.0,0.39597188]
[1750459985728,0.34152708,103180.0,103170.0,0.39597188]
[1750459986373,0.34252708,103180.0,103170.0,0.39697188]
[1750459987383,0.34352708,103180.0,103170.0,0.39797188]
[1750459988011,0.37322708,103180.0,103170.0,0.39797188]
[1750459989934,0.38291803,103180.0,103170.0,0.39797188]
[1750459990981,0.37322708,103180.0,103170.0,0.39797188]
[1750459991280,0.38291803,103180.0,103170.0,0.39797188]
[1750459991494,0.37322708,103180.0,103170.0,0.39797188]
[1750459999815,0.37322708,103180.0,103170.0,0.22493188]
[1750460000047,1.11427963,103180.0,103170.0,0.002]
[1750460000308,1.26788169,103180.0,103170.0,0.20554744]
[1750460000721,1.36316062,103180.0,103170.0,0.20554754]
[1750460001090,1.35346929,103180.0,103170.0,0.1958548]
[1750460001302,1.34377768,103180.0,103170.0,0.1958548]
[1750460001537,0.66090636,103180.0,103170.0,0.20554744]
[1750460001670,1.00234202,103180.0,103170.0,0.21523999]
[1750460001872,1.01203363,103180.0,103170.0,0.21523999]
[1750460002563,1.01203363,103180.0,103170.0,0.20554744]
[1750460003189,0.81819734,103180.0,103170.0,0.20554744]
[1750460003404,0.91470096,103180.0,103170.0,0.22493188]
[1750460003842,0.91470096,103180.0,103170.0,0.2152398]
[1750460004079,0.92439257,103180.0,103170.0,0.22493197]
[1750460004289,0.92439276,103180.0,103170.0,0.23462405]
[1750460005447,0.5732653,103180.0,103170.0,0.23462405]
[1750460005718,0.91466086,103180.0,103170.0,0.23462405]
[1750460006579,0.90496935,103180.0,103170.0,0.23462405]
[1750460006798,0.91466077,103180.0,103170.0,0.23462405]
[1750460007446,0.91466068,103180.0,103170.0,0.23462405]
[1750460007700,0.74230068,103180.0,103170.0,0.23462405]
[1750460008564,0.75199219,103180.0,103170.0,0.23462405]
[1750460011570,0.41055653,103180.0,103170.0,0.23462405]
[1750460011780,0.74139219,103180.0,103170.0,0.23462405]
[1750460012840,0.75019219,103180.0,103170.0,0.23462405]
[1750460013248,0.74139219,103180.0,103170.0,0.23462405]
[1750460015045,0.73170068,103180.0,103170.0,0.23462405]
[1750460015256,0.71260068,103180.0,103170.0,0.23462405]
[1750460015674,0.36147369,103180.0,103170.0,0.23462405]
[1750460015880,0.71260077,103180.0,103170.0,0.23462405]
[1750460016324,0.72229238,103180.0,103170.0,0.23462405]
[1750460016540,0.88468077,103180.0,103170.0,0.23462405]
[1750460016734,0.87498935,103180.0,103170.0,0.23462405]
[1750460016899,0.89437229,103180.0,103170.0,0.23462405]
[1750460017276,0.89437219,103180.0,103170.0,0.23462405]
[1750460017501,0.72229219,103180.0,103170.0,0.23462405]
[1750460017706,0.89433219,103180.0,103170.0,0.23462405]
[1750460017964,0.9040238,103180.0,103170.0,0.23462405]
[1750460019744,0.90402446,103180.0,103170.0,0.23462405]
[1750460019946,0.90402503,103180.0,103170.0,0.23462405]
[1750460020975,1.08816971,103180.0,103170.0,0.22493197]
[1750460021173,1.08816971,103180.0,103170.0,0.2152398]
[1750460021952,1.0784782,103180.0,103170.0,0.2152398]
[1750460022573,1.0784782,103180.0,103170.0,0.22493207]
[1750460022776,1.0784782,103180.0,103170.0,0.23462424]
[1750460023024,6.5726921,103180.0,103170.0,0.002]
[1750460023180,6.5814921,103180.0,103170.0,0.002]
[1750460023386,6.75429663,103180.0,103170.0,0.002]
[1750460023593,5.2989532,103160.0,103150.0,0.22297557]
[1750460023793,5.64038886,103160.0,103150.0,0.23266971]
[1750460023973,5.81222886,103160.0,103150.0,0.22297566]
[1750460024223,0.35938876,103150.0,103140.0,0.22430626]
[1750460024395,0.72021233,103150.0,103140.0,0.23269152]
[1750460025251,0.92379932,103150.0,103140.0,0.21330163]
[1750460025470,0.91410546,103150.0,103140.0,0.222997]
[1750460026315,0.91410546,103150.0,103140.0,0.23269208]
[1750460026532,0.91410546,103150.0,103140.0,0.20360655]
[1750460026681,0.90541141,103150.0,103140.0,0.21530182]
[1750460026887,0.90541141,103150.0,103140.0,0.224997]
[1750460027064,0.90641141,103150.0,103140.0,0.225997]
[1750460027269,0.71251903,103150.0,103140.0,0.225997]
[1750460027476,0.71251903,103150.0,103140.0,0.2356919]
[1750460027743,0.70282442,103150.0,103140.0,0.2356919]
[1750460027953,0.70282442,103150.0,103140.0,0.225997]
[1750460028330,0.70282442,103150.0,103140.0,0.23569208]
[1750460028943,0.70282442,103150.0,103140.0,0.24538707]
[1750460029102,0.70282442,103150.0,103140.0,0.23569208]
[1750460029301,0.70282442,103150.0,103140.0,0.225997]
[1750460029504,0.70282442,103150.0,103140.0,0.24538707]
[1750460029743,0.70282442,103150.0,103140.0,0.2453866]
[1750460030987,0.70282386,103150.0,103140.0,0.2656866]
[1750460031479,0.71251819,103150.0,103140.0,0.2656866]
[1750460031722,0.70282386,103150.0,103140.0,0.2656866]
[1750460032347,0.70282386,103150.0,103140.0,0.2866866]
[1750460035272,0.69312962,103150.0,103140.0,0.2866866]
[1750460035477,0.69312962,103150.0,103140.0,0.2878266]
[1750460036490,0.70282376,103150.0,103140.0,0.2878266]
[1750460036689,0.70282376,103150.0,103140.0,0.2866866]
[1750460036973,0.69312962,103150.0,103140.0,0.2866866]
[1750460037380,6.50290105,103150.0,103140.0,0.003]
[1750460038341,0.54360655,103140.0,103130.0,0.21332188]
[1750460038557,1.41523787,103140.0,103130.0,0.21332188]
[1750460038769,1.41523787,103140.0,103130.0,0.20362567]
[1750460039643,5.62752269,103130.0,103120.0,0.0001]
[1750460039870,0.35939374,103120.0,103110.0,0.24382794]
[1750460040088,0.71052674,103120.0,103110.0,0.24387508]
[1750460041452,0.72122352,103120.0,103110.0,0.24687508]
[1750460042093,0.74192731,103120.0,103110.0,0.24687508]
[1750460042320,0.92618007,103120.0,103110.0,0.20667945]
[1750460042519,0.92718007,103120.0,103110.0,0.20767945]
[1750460042979,0.92718007,103120.0,103110.0,0.21737754]
[1750460043885,0.71383651,103120.0,103110.0,0.23677326]
[1750460044104,0.81652186,103120.0,103110.0,0.25707326]
[1750460044555,1.01047065,103120.0,103110.0,0.24737554]
[1750460045017,6.55395191,103120.0,103110.0,0.00404714]
[1750460045256,6.64923084,103120.0,103110.0,0.00404714]
[1750460045475,6.67343084,103120.0,103110.0,0.00404714]
[1750460049070,5.99055952,103120.0,103110.0,0.00404714]
[1750460049300,6.67343084,103120.0,103110.0,0.00404714]
[1750460050240,5.99055952,103120.0,103110.0,0.00404714]
[1750460050474,6.69643823,103120.0,103110.0,0.00404714]
[1750460050704,6.69443823,103120.0,103110.0,4.714e-05]
[1750460050935,6.69643823,103120.0,103110.0,4.714e-05]
[1750460052046,6.71843536,103120.0,103110.0,0.00104714]
[1750460052463,6.70043823,103120.0,103110.0,0.00104714]
[1750460056277,0.22308296,103100.0,103090.0,0.2344031]
[1750460056491,5.44436296,103100.0,103090.0,0.26547429]
[1750460056710,5.78579862,103100.0,103090.0,0.26547429]
[1750460057345,5.78679862,103100.0,103090.0,0.26647429]
[1750460057576,5.77710006,103100.0,103090.0,0.2567745]
[1750460058215,5.76740121,103100.0,103090.0,0.23737446]
[1750460058426,5.76740121,103100.0,103090.0,0.24707472]
[1750460058646,5.76840121,103100.0,103090.0,0.26847485]
[1750460059549,5.76840121,103100.0,103090.0,0.27817473]
[1750460059760,5.76840121,103100.0,103090.0,0.27937473]
[1750460059986,5.76840121,103100.0,103090.0,0.28907452]
[1750460060407,5.76840121,103100.0,103090.0,0.28907395]
[1750460060626,5.61301261,103100.0,103090.0,0.28907395]
[1750460060842,5.62271183,103100.0,103090.0,0.28907395]
[1750460061085,5.63241115,103100.0,103090.0,0.28907395]
[1750460061317,5.82639757,103100.0,103090.0,0.27937426]
[1750460061533,5.81669872,103100.0,103090.0,0.27937426]
[1750460062762,5.81669872,103100.0,103090.0,0.26847447]
[1750460062763,5.82998067,103100.0,103090.0,0.26847447]
[1750460063934,5.82998067,103100.0,103090.0,0.27817426]
[1750460064395,5.82998067,103100.0,103090.0,0.28787395]
[1750460064855,5.63599425,103100.0,103090.0,0.28787339]
[1750460066047,5.61301279,103100.0,103090.0,0.28787339]
[1750460066522,5.61301279,103100.0,103090.0,0.2684741]
[1750460066523,5.80699921,103100.0,103090.0,0.2684741]
[1750460067472,5.61301279,103100.0,103090.0,0.2684741]
[1750460067703,5.61301279,103100.0,103090.0,0.2781737]
[1750460068167,5.63608431,103100.0,103090.0,0.2781737]
[1750460068399,5.61301279,103100.0,103090.0,0.2781737]
[1750460068628,5.64579448,103100.0,103090.0,0.2781737]
[1750460068865,5.74106433,103100.0,103090.0,0.2781737]
[1750460069242,5.64579448,103100.0,103090.0,0.2781737]
[1750460069335,5.63609516,103100.0,103090.0,0.2781737]
[1750460069566,5.63609516,103100.0,103090.0,0.2793737]
[1750460069813,0.05398134,103100.0,103090.0,0.2793737]
[1750460070065,0.03089897,103100.0,103090.0,0.2793737]
[1750460070805,0.71233463,103100.0,103090.0,0.2793737]
[1750460071439,0.37233463,103100.0,103090.0,0.2793737]
[1750460074353,0.03089897,103100.0,103090.0,0.2793737]
[1750460074564,0.002,103100.0,103090.0,0.2793737]
[1750460075043,0.34343566,103100.0,103090.0,0.2793737]
[1750460075265,0.002,103100.0,103090.0,0.2793737]
[1750460075511,0.002,103100.0,103090.0,0.37465263]
[1750460078559,0.71328147,103100.0,103090.0,0.19757663]
[1750460078807,0.72298003,103100.0,103090.0,0.26861627]
[1750460079032,0.70283297,103100.0,103090.0,0.26861627]
[1750460079245,0.69313422,103100.0,103090.0,0.26861627]
[1750460079461,0.68343566,103100.0,103090.0,0.43949627]
[1750460079662,0.34343566,103100.0,103090.0,0.5347752]
[1750460079877,0.002,103100.0,103090.0,0.5347752]
[1750460083288,0.002,103100.0,103090.0,0.54931605]
[1750460083915,0.002,103100.0,103090.0,0.89075171]
[1750460084119,0.002,103100.0,103090.0,0.54931605]
[1750460084768,0.002,103100.0,103090.0,0.57844505]
[1750460086174,0.34143566,103120.0,103090.0,0.57844505]
[1750460086365,0.12320386,103120.0,103110.0,0.2650016]
[1750460086625,0.12320386,103120.0,103110.0,0.4357616]
[1750460086873,0.23271581,103150.0,103120.0,0.23588879]
[1750460087105,5.54803316,103150.0,103140.0,0.21330182]
[1750460087338,5.8790144,103150.0,103140.0,0.21330182]
[1750460087544,5.8790144,103150.0,103140.0,0.222997]
[1750460088053,5.51436202,103150.0,103140.0,0.23269208]
[1750460088316,6.37764795,103150.0,103140.0,0.23269208]
[1750460088545,6.3777893,103150.0,103140.0,0.23269208]
[1750460088799,6.3777893,103150.0,103140.0,0.24238707]
[1750460089032,6.36809469,103150.0,103140.0,0.24238707]
[1750460089267,6.37309469,103150.0,103140.0,0.24338707]
[1750460089498,6.03465903,103150.0,103140.0,0.24438707]
[1750460089964,6.03465903,103150.0,103140.0,0.25429208]
[1750460090189,6.03465903,103150.0,103140.0,0.26398707]
[1750460090416,6.37709906,103150.0,103140.0,0.2639866]
[1750460090669,6.57099144,103150.0,103140.0,0.002]
[1750460090938,6.59059144,103150.0,103140.0,0.002]
[1750460099877,6.61972144,103150.0,103140.0,0.002]
[1750460100089,6.61522144,103150.0,103140.0,0.002]
[1750460101631,6.60012144,103150.0,103140.0,0.002]
[1750460101840,6.69539129,103150.0,103140.0,0.0214]
[1750460103083,6.70441948,103150.0,103140.0,0.0214]
[1750460105176,6.57099144,103150.0,103140.0,0.24580664]
[1750460105601,6.5612973,103150.0,103140.0,0.0214]
[1750460105816,6.57033031,103150.0,103140.0,0.0214]
[1750460107537,6.59344272,103150.0,103140.0,0.0214]
[1750460108181,6.58440971,103150.0,103140.0,0.0214]
[1750460108391,6.68871533,103150.0,103140.0,0.0214]
[1750460108602,6.68871626,103150.0,103140.0,0.0214]
[1750460109041,6.66560385,103150.0,103140.0,0.041]
[1750460109265,6.51801362,103150.0,103140.0,0.24460673]
[1750460109480,6.59310377,103150.0,103140.0,0.2555021]
[1750460109900,6.59310377,103150.0,103140.0,0.24580673]
[1750460110130,5.8777213,103150.0,103140.0,0.25430219]
[1750460110347,6.04434052,103150.0,103140.0,0.27489227]
[1750460110573,6.05469178,103150.0,103140.0,0.27489227]
[1750460111455,6.06438639,103150.0,103140.0,0.27489227]
[1750460111674,6.24858491,103150.0,103140.0,0.26519737]
[1750460111885,6.26737766,103150.0,103140.0,0.25550219]
[1750460112095,6.26737766,103150.0,103140.0,0.26519756]
[1750460112309,6.62226781,103150.0,103140.0,0.002]
[1750460112775,6.64035949,103150.0,103140.0,0.002]
[1750460114256,6.62226781,103150.0,103140.0,0.002]
[1750460114477,6.64035951,103150.0,103140.0,0.002]
[1750460114686,5.41908826,103130.0,103120.0,0.25104314]
[1750460114904,6.04547527,103130.0,103120.0,0.2619401]
[1750460115115,6.22001368,103130.0,103120.0,0.25224314]
[1750460115573,6.22001368,103130.0,103120.0,0.0377]
[1750460115785,6.20062107,103130.0,103120.0,0.019]
[1750460115990,6.20162107,103130.0,103120.0,0.02]
[1750460116200,6.23175407,103130.0,103120.0,0.24334613]
[1750460116901,6.20162107,103130.0,103120.0,0.24234613]
[1750460117154,5.68990541,103130.0,103120.0,0.24234613]
[1750460117365,6.20358107,103130.0,103120.0,0.25204319]
[1750460117581,6.20358107,103130.0,103120.0,0.25324319]
[1750460117798,6.20658107,103130.0,103120.0,0.25424319]
[1750460118224,6.20658107,103130.0,103120.0,0.25424338]
[1750460118863,6.20658107,103130.0,103120.0,0.26394053]
[1750460120136,6.21627728,103130.0,103120.0,0.27363749]
[1750460120836,6.21627728,103130.0,103120.0,0.26394053]
[1750460121077,6.20658107,103130.0,103120.0,0.24454613]
[1750460121490,5.86658107,103130.0,103120.0,0.25424338]
[1750460122120,5.86658107,103130.0,103120.0,0.26394044]
[1750460122341,5.86658107,103130.0,103120.0,0.2736374]
[1750460122562,0.006,103130.0,103120.0,0.28333418]
[1750460122785,0.34743566,103130.0,103120.0,0.28333418]
[1750460123433,0.34443566,103130.0,103120.0,0.28233418]
[1750460123651,0.34143566,103130.0,103120.0,0.28133418]
[1750460123858,0.34243566,103130.0,103120.0,0.28233418]
[1750460124955,0.34343566,103130.0,103120.0,0.28333418]
[1750460125160,0.34343566,103130.0,103120.0,0.45349418]
[1750460125789,0.002,103130.0,103120.0,0.45349418]
[1750460126004,0.002,103130.0,103120.0,0.54877311]
[1750460132384,0.3522759,103150.0,103140.0,0.22416672]
[1750460132385,0.35084024,103150.0,103140.0,0.22416672]
[1750460132605,0.35084024,103150.0,103140.0,0.26256672]
[1750460132814,0.01084024,103150.0,103140.0,0.43260672]
[1750460133025,0.3522759,103150.0,103140.0,0.43260672]
[1750460134298,0.3532759,103150.0,103140.0,0.26556672]
[1750460134513,0.3532759,103150.0,103140.0,0.43556672]
[1750460135155,0.3542759,103150.0,103140.0,0.43656672]
[1750460135591,0.3542759,103150.0,103140.0,0.26656672]
[1750460135850,0.3542759,103150.0,103140.0,0.43656672]
[1750460136055,0.01284024,103150.0,103140.0,0.26656672]
[1750460136267,0.01284024,103150.0,103140.0,0.43656672]
[1750460137143,0.3542759,103150.0,103140.0,0.43656672]
[1750460137572,0.01284024,103150.0,103140.0,0.36184565]
[1750460137797,0.01284024,103150.0,103140.0,0.53180565]
[1750460138208,0.00214135,103150.0,103140.0,0.53180565]
[1750460138638,0.00214135,103150.0,103140.0,0.5463465]
[1750460148518,0.11432401,103160.0,103150.0,0.2630751]
[1750460148716,0.11437113,103160.0,103150.0,0.35952403]
[1750460149344,0.01078105,103160.0,103150.0,0.35952403]
[1750460149556,0.35221671,103160.0,103150.0,0.35952403]
[1750460150557,0.35321671,103160.0,103150.0,0.36052403]
[1750460150763,0.35421671,103160.0,103150.0,0.36052403]
[1750460150973,0.01278105,103160.0,103150.0,0.36052403]
[1750460151175,0.35421671,103160.0,103150.0,0.36052403]
[1750460151592,0.35421671,103160.0,103150.0,0.2433751]
[1750460151593,0.37360303,103160.0,103150.0,0.2433751]
[1750460151820,5.99796368,103160.0,103150.0,0.21428114]
[1750460152032,6.141156,103160.0,103150.0,0.001]
[1750460152439,6.12181629,103160.0,103150.0,0.001]
[1750460157271,5.84918875,103160.0,103150.0,0.19489238]
[1750460157478,5.95266934,103160.0,103150.0,0.2644751]
[1750460157688,0.90266934,103160.0,103150.0,0.2644751]
[1750460158309,0.73298934,103160.0,103150.0,0.2644751]
[1750460158553,0.73298924,103160.0,103150.0,0.2644751]
[1750460158751,0.88324256,103160.0,103150.0,0.2656451]
[1750460158961,0.89293576,103160.0,103150.0,0.2656451]
[1750460159745,0.88324256,103160.0,103150.0,0.2656451]
[1750460160569,0.69421671,103160.0,103150.0,0.2656451]
[1750460160779,0.35278105,103160.0,103150.0,0.2656451]
[1750460160990,0.69421671,103160.0,103150.0,0.2656451]
[1750460162172,0.01278105,103160.0,103150.0,0.2656451]
[1750460162772,0.69421671,103160.0,103150.0,0.2656451]
[1750460166293,0.35278105,103160.0,103150.0,0.2644751]
[1750460166564,0.35278105,103160.0,103150.0,0.2657051]
[1750460166837,0.69421671,103160.0,103150.0,0.2657051]
[1750460167300,0.35278105,103160.0,103150.0,0.2657051]
[1750460167529,0.35278105,103160.0,103150.0,0.36098403]
[1750460168019,0.69421671,103160.0,103150.0,0.36098403]
[1750460170728,0.35278105,103160.0,103150.0,0.36098403]
[1750460170973,0.69421671,103160.0,103150.0,0.36098403]
[1750460174206,0.35278105,103160.0,103150.0,0.36098403]
[1750460174459,0.69421671,103160.0,103150.0,0.36098403]
[1750460175741,0.35278105,103160.0,103150.0,0.36098403]
[1750460175957,0.01278105,103160.0,103150.0,0.36098403]
[1750460179847,0.01026105,103160.0,103150.0,0.36098403]
[1750460180066,0.00204712,103160.0,103150.0,0.36098403]
[1750460181393,0.3537028,103160.0,103150.0,0.36098403]
[1750460181604,0.34348278,103160.0,103150.0,0.36098403]
[1750460182462,0.00204712,103160.0,103150.0,0.36098403]
[1750460184686,0.34348278,103160.0,103150.0,0.36098403]
[1750460185406,0.34348278,103160.0,103150.0,0.35975403]
[1750460185639,0.34348278,103160.0,103150.0,0.4349851]
[1750460186122,0.35380233,103160.0,103150.0,0.4349851]
[1750460186548,0.01236667,103160.0,103150.0,0.4349851]
[1750460186774,0.35380233,103160.0,103150.0,0.2657051]
[1750460187024,0.01236667,103160.0,103150.0,0.2657051]
[1750460187904,0.01236667,103160.0,103150.0,0.36098403]
[1750460193468,0.35380233,103160.0,103150.0,0.36098403]
[1750460195051,0.01236667,103160.0,103150.0,0.36098403]
[1750460195298,0.35380233,103160.0,103150.0,0.36098403]
[1750460195524,0.01236667,103160.0,103150.0,0.36098403]
[1750460195743,0.35380233,103160.0,103150.0,0.36098403]
[1750460198359,0.01236667,103160.0,103150.0,0.36098403]
[1750460198582,0.35380233,103160.0,103150.0,0.36098403]
[1750460201812,0.35280233,103160.0,103150.0,0.36098403]
[1750460202030,0.35180233,103160.0,103150.0,0.35998403]
[1750460202230,0.35280233,103160.0,103150.0,0.36098403]
[1750460202692,0.01136667,103160.0,103150.0,0.36098403]
[1750460203856,0.01236667,103160.0,103150.0,0.36298403]
[1750460204814,0.51204592,103170.0,103160.0,0.26535349]
[1750460205438,0.34,103170.0,103160.0,0.26535349]
[1750460205645,0.68143566,103170.0,103160.0,0.26535349]
[1750460206055,0.68243566,103170.0,103160.0,0.26735349]
[1750460207359,0.342,103170.0,103160.0,0.27035349]
[1750460207581,0.68343566,103170.0,103160.0,0.27035349]
[1750460207999,0.69360595,103170.0,103160.0,0.27035349]
[1750460212776,0.35217029,103170.0,103160.0,0.27035349]
[1750460216122,0.35217029,103170.0,103160.0,0.53439242]
[1750460216559,0.01217029,103170.0,103160.0,0.53439242]
[1750460217003,0.01217029,103170.0,103160.0,0.87565079]
[1750460218954,0.01217029,103170.0,103160.0,0.53439242]
[1750460226898,0.01217029,103170.0,103160.0,0.87566399]
[1750460227114,0.002,103170.0,103160.0,0.87566399]
[1750460227347,0.002,103170.0,103160.0,0.53439242]
[1750460229116,0.002,103170.0,103160.0,0.87566399]
[1750460230837,0.002,103170.0,103160.0,0.89020484]
[1750460231058,0.002,103170.0,103160.0,0.9467358]
[1750460231739,5e-05,103180.0,103170.0,0.27687273]
[1750460231954,5e-05,103180.0,103170.0,0.71457323]
[1750460232867,5e-05,103180.0,103170.0,0.74368023]
[1750460234358,0.00105,103180.0,103170.0,0.74468023]
[1750460234578,0.00205,103180.0,103170.0,0.74468023]
[1750460240043,0.34332157,103180.0,103170.0,0.38886781]
[1750460240290,0.34332157,103180.0,103170.0,0.41326188]
[1750460241599,0.00205,103180.0,103170.0,0.41326188]
[1750460242018,0.00205,103180.0,103170.0,0.43476188]
[1750460244988,0.71586177,103190.0,103180.0,0.22291027]
[1750460245212,0.71595315,103190.0,103180.0,0.22291027]
[1750460246175,0.71595306,103190.0,103180.0,0.22291027]
[1750460246429,0.71695306,103190.0,103180.0,0.22491027]
[1750460247395,0.70723306,103190.0,103180.0,0.22491027]
[1750460247594,0.69153306,103190.0,103180.0,0.22491027]
[1750460247809,0.68184295,103190.0,103180.0,0.22491027]
[1750460248495,0.70122316,103190.0,103180.0,0.39311027]
[1750460249367,0.69153296,103190.0,103180.0,0.39311027]
[1750460249593,0.34057138,103190.0,103180.0,0.39311027]
[1750460249869,0.68184295,103190.0,103180.0,0.39311027]
[1750460252163,0.68184295,103190.0,103180.0,0.41291027]
[1750460253887,0.34057138,103190.0,103180.0,0.41291027]
[1750460254097,0.68184295,103190.0,103180.0,0.41291027]
[1750460256246,0.68184295,103190.0,103180.0,0.41414027]
[1750460256886,0.68178228,103190.0,103180.0,0.41291027]
[1750460257975,0.7105708,103190.0,103180.0,0.41291027]
[1750460258410,0.7105707,103190.0,103180.0,0.41291027]
[1750460258629,0.72026081,103190.0,103180.0,0.41291027]
[1750460259247,0.7105707,103190.0,103180.0,0.41291027]
[1750460259452,0.75485156,103190.0,103180.0,0.22491027]
[1750460259659,0.74516099,103190.0,103180.0,0.22491027]
[1750460259869,0.75485147,103190.0,103180.0,0.22491027]
[1750460260301,0.76454204,103190.0,103180.0,0.22491027]
[1750460260967,0.76461084,103190.0,103180.0,0.22491027]
[1750460261929,0.77430151,103190.0,103180.0,0.22391027]
[1750460262167,0.77330151,103190.0,103180.0,0.22291027]
[1750460262390,0.77330151,103190.0,103180.0,0.22491027]
[1750460262598,0.77430151,103190.0,103180.0,0.22691027]
[1750460262823,0.76510151,103190.0,103180.0,0.22691027]
[1750460263264,0.75541084,103190.0,103180.0,0.22691027]
[1750460264187,0.73971084,103190.0,103180.0,0.22691027]
[1750460264833,0.74940151,103190.0,103180.0,0.22691027]
[1750460266330,0.73002027,103190.0,103180.0,0.22691027]
[1750460267722,0.73971094,103190.0,103180.0,0.22691027]
[1750460269115,0.39843124,103190.0,103180.0,0.22691027]
[1750460269319,0.73971094,103190.0,103180.0,0.22691027]
[1750460270280,0.73002027,103190.0,103180.0,0.24841027]
[1750460270590,0.73002027,103190.0,103180.0,0.27054027]
[1750460271609,0.73971094,103190.0,103180.0,0.27054027]
[1750460271997,0.73971084,103190.0,103180.0,0.27054027]
[1750460272789,0.73002027,103190.0,103180.0,0.27054027]
[1750460273219,0.72032979,103190.0,103180.0,0.27054027]
[1750460273438,0.73002027,103190.0,103180.0,0.27054027]
[1750460273699,0.73971084,103190.0,103180.0,0.27054027]
[1750460273918,0.7106395,103190.0,103180.0,0.27054027]
[1750460274130,0.7203297,103190.0,103180.0,0.27054027]
[1750460277958,0.73002009,103190.0,103180.0,0.27054027]
[1750460278212,0.7203297,103190.0,103180.0,0.27054027]
[1750460278470,0.73001999,103190.0,103180.0,0.27054027]
[1750460279231,0.73971038,103190.0,103180.0,0.27054027]
[1750460279464,0.7106395,103190.0,103180.0,0.27054027]
[1750460279686,0.72032961,103190.0,103180.0,0.27054027]
[1750460280304,0.35966979,103190.0,103180.0,0.27054027]
[1750460280523,0.7106396,103190.0,103180.0,0.27054027]
[1750460280986,0.71060662,103190.0,103180.0,0.27054027]
[1750460281846,0.7299873,103190.0,103180.0,0.27054027]
[1750460282138,0.72998721,103190.0,103180.0,0.27054027]
[1750460282348,0.72998711,103190.0,103180.0,0.27054027]
[1750460285341,0.7396775,103190.0,103180.0,0.27054027]
[1750460285887,0.74936817,103190.0,103180.0,0.27054027]
[1750460286093,0.74936807,103190.0,103180.0,0.27054027]
[1750460286365,0.7396775,103190.0,103180.0,0.27054027]
[1750460288706,1.0712344,103190.0,103180.0,0.27054027]
[1750460288931,1.04216323,103190.0,103180.0,0.27054027]
[1750460289149,1.0712341,103190.0,103180.0,0.27054027]
[1750460289372,1.06154353,103190.0,103180.0,0.27054027]
[1750460289597,0.72029681,103190.0,103180.0,0.27054027]
[1750460289824,1.08092449,103190.0,103180.0,0.27054027]
[1750460290481,1.07123392,103190.0,103180.0,0.27054027]